bitfinex/quotes_SOLUSD_20220116
["timestamp","ask_amount","ask_price","bid_price","bid_amount"]
[1642331226529,1.70077588,148.13,148.02,0.26]
[1642331226736,1.70077588,148.12,148.02,0.26]
[1642331226930,17.63217422,148.15,148.02,23.8683]
[1642331227130,17.63217422,148.15,148.02,25.02575339]
[1642331227430,17.63217422,148.15,148.02,31.27575339]
[1642331227630,4.70909816,148.17,148.03,36.0016204]
[1642331227830,4.70909816,148.17,148.04,0.26]
[1642331228032,4.70909816,148.17,148.04,8.847]
[1642331228431,31.70583613,148.21,148.04,39.917]
[1642331228829,31.70583613,148.21,148.05,67.39]
[1642331229229,14.08082119,148.21,148.06,23.1171]
[1642331229431,5.39368507,148.22,148.07,44.42490473]
[1642331229633,5.39368507,148.22,148.07,75.35250473]
[1642331229832,5.39368507,148.22,148.08,67.65]
[1642331230235,5.39368507,148.22,148.08,96.9991]
[1642331231332,24.2356,148.26,148.08,96.9991]
[1642331231533,10.88458716,148.27,148.08,98.16115366]
[1642331232331,10.88458716,148.27,148.09,33.73]
[1642331232332,5.78629116,148.26,148.09,33.73]
[1642331232531,5.78629116,148.26,148.1,43.18846727]
[1642331232733,5.78629116,148.26,148.11,24.9449]
[1642331232935,5.78629116,148.26,148.12,0.26]
[1642331233733,5.78629116,148.26,148.12,67.65]
[1642331233932,5.78629116,148.26,148.13,39.86799565]
[1642331234132,5.78629116,148.26,148.14,67.39]
[1642331234333,5.78629116,148.26,148.14,67.65]
[1642331234734,5.78629116,148.26,148.14,67.39]
[1642331234933,18.3716542,148.26,148.14,67.39]
[1642331235536,5.78629116,148.26,148.14,67.39]
[1642331235736,5.78629116,148.26,148.15,37.32764869]
[1642331236339,5.78629116,148.26,148.16,67.65]
[1642331237739,5.78629116,148.26,148.16,67.39]
[1642331237940,5.78629116,148.26,148.12,67.39]
[1642331238341,0.26,148.25,148.12,67.39]
[1642331238739,0.26,148.25,148.13,38.47137002]
[1642331239341,0.26,148.25,148.14,67.39]
[1642331240944,15.90729116,148.26,148.14,67.39]
[1642331241844,15.90729116,148.26,148.15,0.26]
[1642331242244,0.26,148.25,148.15,0.26]
[1642331242467,5.78629116,148.26,148.15,0.26]
[1642331242667,5.78629116,148.26,148.15,5.706]
[1642331242867,5.78629116,148.26,148.16,41.44131874]
[1642331243068,5.78629116,148.26,148.17,67.39]
[1642331243268,5.78629116,148.26,148.17,67.65]
[1642331244872,24.243,148.28,148.17,73.65]
[1642331245073,24.243,148.28,148.17,76.167]
[1642331245278,24.243,148.28,148.17,81.917]
[1642331245474,1.88740448,148.29,148.17,81.917]
[1642331245674,1.88740448,148.29,148.17,104.5825]
[1642331245875,4.45326412,148.28,148.17,104.5825]
[1642331246076,4.45326412,148.28,148.17,98.5825]
[1642331246277,4.45326412,148.28,148.17,104.5825]
[1642331246576,4.45326412,148.28,148.17,98.5825]
[1642331246875,4.45326412,148.28,148.17,98.3225]
[1642331247477,6.3406686,148.28,148.17,98.5725]
[1642331247877,1.88740448,148.28,148.18,0.26]
[1642331248679,22.811,148.3,148.18,0.26]
[1642331248883,4.22326231,148.29,148.17,90.0555]
[1642331249681,0.26,148.28,148.17,90.0555]
[1642331249882,2.14740448,148.28,148.17,90.0555]
[1642331250284,2.14740448,148.28,148.18,0.26]
[1642331250683,2.14740448,148.28,148.17,90.0555]
[1642331250884,0.26,148.28,148.17,90.0555]
[1642331251285,1.96077588,148.28,148.17,90.0555]
[1642331251683,1.88740448,148.27,148.26,0.20792759]
[1642331252585,3.58818036,148.27,148.26,0.20792759]
[1642331252786,3.58818036,148.27,148.26,1e-08]
[1642331253486,1.70077588,148.27,148.26,1e-08]
[1642331253686,10.1196,148.28,148.26,1e-08]
[1642331255189,13.80176241,148.28,148.26,1e-08]
[1642331255890,0.26,148.27,148.26,1e-08]
[1642331257191,4.09809539,148.27,148.26,1e-08]
[1642331260295,3.83809539,148.27,148.26,1e-08]
[1642331260896,7.6799482,148.27,148.26,1e-08]
[1642331261522,7.6799482,148.27,148.26,92.2033446]
[1642331261721,3.84185281,148.27,148.26,159.5933446]
[1642331261924,1.92006601,148.29,148.26,159.5933446]
[1642331262726,1.92006601,148.31,148.26,159.5933446]
[1642331263826,1.92006601,148.31,148.26,109.45439995]
[1642331264027,1.92006601,148.32,148.26,109.45439995]
[1642331264526,1.92006601,148.32,148.26,73.45439995]
[1642331264730,1.92006601,148.33,148.26,73.45439995]
[1642331265726,1.92006601,148.32,148.26,73.45439995]
[1642331265927,7.6690231,148.35,148.28,66.0]
[1642331266128,424.35162338,148.41,148.32,67.39]
[1642331266331,424.35162338,148.41,148.33,0.26]
[1642331266829,17.59994685,148.45,148.33,0.26]
[1642331267028,17.43142663,148.44,148.34,67.39]
[1642331267530,17.43142663,148.44,148.35,0.26]
[1642331267929,0.26,148.43,148.35,0.26]
[1642331268329,17.43142663,148.44,148.35,0.26]
[1642331270934,48.1474,148.47,148.35,0.26]
[1642331271836,0.26,148.46,148.35,0.26]
[1642331272038,15.47573579,148.46,148.35,0.26]
[1642331275772,15.21573579,148.46,148.35,0.26]
[1642331275975,17.59152104,148.52,148.35,0.26]
[1642331276176,46.4096,148.55,148.36,1.14543446]
[1642331276370,46.4096,148.55,148.37,0.26]
[1642331276772,46.4096,148.55,148.37,67.65]
[1642331276971,18.87329231,148.54,148.38,90.62601026]
[1642331277374,18.87329231,148.54,148.39,0.26]
[1642331277772,18.87329231,148.54,148.39,67.65]
[1642331277974,0.26,148.53,148.39,67.39]
[1642331279474,10.3634,148.53,148.39,67.39]
[1642331279876,34.4423,148.53,148.39,67.39]
[1642331280975,34.4423,148.53,148.34,23.592]
[1642331281176,34.4423,148.53,148.35,67.39]
[1642331281876,34.4423,148.53,148.35,67.64]
[1642331282079,34.4423,148.53,148.36,38.20401212]
[1642331282483,34.4423,148.53,148.37,67.39]
[1642331282777,36.14307588,148.53,148.37,67.39]
[1642331283178,36.14307588,148.53,148.3,1.14543446]
[1642331283380,85.33005808,148.53,148.29,67.39]
[1642331283578,85.33005808,148.53,148.3,6.0]
[1642331283778,85.33005808,148.53,148.29,67.39]
[1642331283979,85.33005808,148.53,148.31,67.39]
[1642331284180,85.33005808,148.53,148.32,47.98004459]
[1642331284379,85.33005808,148.53,148.33,67.39]
[1642331286782,85.33005808,148.53,148.32,47.98004459]
[1642331288884,85.33005808,148.53,148.32,115.37004459]
[1642331289985,2.36050762,148.51,148.32,115.37004459]
[1642331290186,16.84332907,148.45,148.32,115.37004459]
[1642331290387,41.01632907,148.45,148.32,115.37004459]
[1642331291486,10.1093,148.44,148.32,115.37004459]
[1642331291889,0.26,148.43,148.32,115.37004459]
[1642331293989,41.01632907,148.45,148.32,115.37004459]
[1642331294189,16.84332907,148.45,148.33,0.26]
[1642331294391,24.3683,148.49,148.33,0.26]
[1642331294590,24.3683,148.49,148.33,46.2989]
[1642331294992,24.3683,148.49,148.33,46.5489]
[1642331295191,24.3683,148.49,148.34,67.39]
[1642331295393,15.31189036,148.48,148.35,46.41540174]
[1642331295792,15.31189036,148.48,148.36,67.39]
[1642331296192,15.31189036,148.48,148.37,0.26]
[1642331297998,0.26,148.47,148.37,0.26]
[1642331298623,0.26,148.47,148.36,67.64]
[1642331298824,0.26,148.47,148.37,0.26]
[1642331299424,15.31189036,148.48,148.37,0.26]
[1642331300829,0.26,148.47,148.37,0.26]
[1642331306935,17.85189948,148.47,148.37,0.26]
[1642331308735,17.59189948,148.47,148.37,0.26]
[1642331308936,15.31189036,148.48,148.37,0.26]
[1642331312437,27.69169077,148.54,148.37,0.26]
[1642331312638,24.3783,148.53,148.38,67.39]
[1642331312839,24.3783,148.53,148.37,25.66043446]
[1642331313038,24.3783,148.53,148.37,24.515]
[1642331313240,32.04537966,148.53,148.37,24.515]
[1642331313438,14.91296914,148.52,148.38,42.85168187]
[1642331313840,0.26,148.51,148.39,23.6352]
[1642331314238,0.26,148.51,148.4,0.26]
[1642331314439,0.26,148.51,148.41,42.70274386]
[1642331315043,0.26,148.51,148.41,110.09274386]
[1642331315742,14.91296914,148.52,148.41,110.09274386]
[1642331316847,0.26,148.51,148.41,110.09274386]
[1642331319948,14.91296914,148.52,148.41,110.09274386]
[1642331320149,24.3783,148.53,148.42,0.26]
[1642331320350,23.7346,148.55,148.42,0.26]
[1642331320550,23.7346,148.55,148.42,23.8838]
[1642331320749,23.7346,148.55,148.43,67.39]
[1642331320950,23.7346,148.55,148.44,0.26]
[1642331321151,14.96631975,148.54,148.44,50.05320893]
[1642331321855,16.66709563,148.54,148.44,49.79320893]
[1642331322352,16.66709563,148.54,148.44,117.18320893]
[1642331323255,16.66709563,148.54,148.45,0.26]
[1642331323652,0.26,148.53,148.45,0.26]
[1642331325556,1.96077588,148.53,148.44,117.18320893]
[1642331326156,1.96077588,148.53,148.44,49.79320893]
[1642331326360,1.96077588,148.53,148.42,23.6238]
[1642331327261,1.96077588,148.53,148.43,47.96959224]
[1642331329660,12.06387588,148.53,148.43,47.96959224]
[1642331329859,12.06387588,148.53,148.39,67.39]
[1642331330059,24.7167,148.52,148.39,67.39]
[1642331330359,24.7167,148.52,148.39,67.64]
[1642331330560,1.70077588,148.51,148.36,23.6616]
[1642331330758,30.85158018,148.5,148.38,43.37252335]
[1642331331163,1.70077588,148.49,148.38,43.37252335]
[1642331331961,0.26,148.48,148.38,43.37252335]
[1642331332392,1.70077588,148.47,148.38,43.37252335]
[1642331332590,14.96631975,148.46,148.38,43.37252335]
[1642331334692,1.70077588,148.47,148.38,110.76252335]
[1642331335692,21.14137981,148.47,148.38,110.76252335]
[1642331337600,0.26,148.46,148.38,110.76252335]
[1642331338595,0.26,148.46,148.38,43.37252335]
[1642331339094,1.96077588,148.46,148.38,43.37252335]
[1642331342101,1.96077588,148.46,148.38,110.76252335]
[1642331343200,0.26,148.46,148.38,110.76252335]
[1642331346104,0.26,148.46,148.38,43.37252335]
[1642331347107,0.26,148.46,148.38,111.01252335]
[1642331347510,24.3791,148.48,148.38,111.01252335]
[1642331347709,1.70077588,148.49,148.38,111.01252335]
[1642331347912,1.70077588,148.48,148.39,0.26]
[1642331348112,29.49411756,148.5,148.39,0.26]
[1642331348312,49.45934258,148.5,148.39,0.26]
[1642331348517,31.19489344,148.5,148.39,0.26]
[1642331348713,31.19489344,148.5,148.39,6.175]
[1642331348914,29.49411756,148.5,148.4,67.39]
[1642331349313,29.49411756,148.5,148.41,0.26]
[1642331349615,20.2188633,148.49,148.41,37.26400706]
[1642331349813,0.26,148.48,148.41,37.26400706]
[1642331351839,23.7515,148.5,148.41,37.26400706]
[1642331352841,23.7515,148.5,148.42,67.39]
[1642331353440,23.7515,148.5,148.43,0.26]
[1642331353641,18.15015691,148.52,148.43,0.26]
[1642331354041,1.70077588,148.51,148.43,0.26]
[1642331355442,0.26,148.5,148.43,0.26]
[1642331356343,3.83817887,148.49,148.43,0.26]
[1642331357345,0.26,148.5,148.43,0.26]
[1642331357546,4.09602457,148.5,148.43,5.778]
[1642331357743,4.09602457,148.5,148.45,67.39]
[1642331358744,0.26,148.5,148.45,67.39]
[1642331363051,3.83602457,148.52,148.45,67.39]
[1642331363851,3.83602457,148.52,148.46,0.26]
[1642331364050,3.82996979,148.52,148.46,8.946]
[1642331364451,3.82996979,148.52,148.46,9.196]
[1642331364849,3.82996979,148.52,148.47,39.56274925]
[1642331365061,13.40861192,148.55,148.47,39.56274925]
[1642331365255,7.66599436,148.55,148.48,67.65]
[1642331365452,7.66599436,148.55,148.48,67.9]
[1642331366353,3.83602457,148.56,148.48,67.9]
[1642331367554,3.82224654,148.57,148.48,67.9]
[1642331367956,3.82224654,148.57,148.48,73.9]
[1642331368355,5.53680045,148.59,148.48,73.9]
[1642331368556,5.53680045,148.59,148.48,97.32]
[1642331370459,3.83602457,148.59,148.48,97.32]
[1642331371260,3.83602457,148.6,148.48,97.32]
[1642331371958,18.91600108,148.61,148.48,97.32]
[1642331372362,20.61677696,148.61,148.48,97.32]
[1642331372659,20.61677696,148.61,148.48,91.07]
[1642331372862,23.9329,148.6,148.48,90.81]
[1642331373260,1.70077588,148.59,148.48,90.81]
[1642331373862,1.70077588,148.59,148.48,91.06]
[1642331374063,1.70077588,148.59,148.49,0.26]
[1642331374665,3.83602457,148.6,148.49,0.26]
[1642331375567,16.43641348,148.62,148.49,0.26]
[1642331375764,28.72022457,148.64,148.49,0.26]
[1642331376164,0.26,148.63,148.49,0.26]
[1642331377267,49.4909,148.64,148.49,0.26]
[1642331377464,49.4909,148.64,148.49,7.481]
[1642331377866,49.4909,148.64,148.5,22.5914]
[1642331378268,24.6067,148.64,148.52,67.39]
[1642331378468,24.6067,148.64,148.55,43.92980808]
[1642331378670,28.96722927,148.64,148.56,67.39]
[1642331378868,28.96722927,148.64,148.55,111.31980808]
[1642331379769,24.6067,148.64,148.55,111.31980808]
[1642331379969,0.26,148.63,148.55,111.31980808]
[1642331380773,41.0165572,148.64,148.55,111.31980808]
[1642331380974,24.6067,148.64,148.56,0.26]
[1642331383177,3.36392863,148.63,148.55,111.31980808]
[1642331383975,0.26,148.62,148.55,111.31980808]
[1642331385810,24.6067,148.64,148.55,111.31980808]
[1642331386008,0.26,148.63,148.55,111.31980808]
[1642331386809,0.26,148.63,148.55,111.56980808]
[1642331387210,2.16458898,148.63,148.55,111.56980808]
[1642331387411,2.16458898,148.63,148.56,0.26]
[1642331387612,1.90458898,148.63,148.56,0.26]
[1642331387910,26.51128898,148.64,148.56,0.26]
[1642331388313,1.90458898,148.64,148.55,111.31980808]
[1642331388913,0.26,148.63,148.55,111.31980808]
[1642331389914,2.16458898,148.63,148.55,111.31980808]
[1642331390314,5.45128048,148.62,148.55,111.31980808]
[1642331392316,5.45128048,148.62,148.54,67.39]
[1642331392516,5.45128048,148.62,148.54,67.65]
[1642331392716,7.35586946,148.62,148.54,67.65]
[1642331393518,1.90458898,148.61,148.54,67.65]
[1642331394916,0.26,148.6,148.54,67.65]
[1642331395518,2.16458898,148.6,148.54,67.65]
[1642331395719,15.78251945,148.59,148.54,67.65]
[1642331398120,15.78251945,148.59,148.53,91.6036]
[1642331398319,15.78251945,148.59,148.53,24.2136]
[1642331398522,15.78251945,148.59,148.49,23.8902]
[1642331398920,15.78251945,148.59,148.49,24.1402]
[1642331399121,15.78251945,148.59,148.5,47.81291588]
[1642331399321,1.90458898,148.58,148.5,48.06291588]
[1642331399620,1.90458898,148.58,148.51,67.39]
[1642331402024,0.26,148.57,148.51,67.39]
[1642331402822,0.26,148.57,148.51,67.64]
[1642331403222,2.16458898,148.57,148.51,67.39]
[1642331403423,0.26,148.56,148.51,67.39]
[1642331405028,2.16458898,148.56,148.51,67.39]
[1642331406827,0.26,148.56,148.51,67.39]
[1642331407329,0.26,148.56,148.51,67.64]
[1642331407629,0.26,148.56,148.51,67.39]
[1642331409429,0.26,148.56,148.51,67.64]
[1642331409630,0.26,148.56,148.51,67.39]
[1642331411030,0.26,148.56,148.51,67.64]
[1642331411660,0.26,148.56,148.51,67.39]
[1642331412261,0.26,148.56,148.51,67.64]
[1642331412664,1.90458898,148.57,148.52,0.26]
[1642331413363,1.90458898,148.58,148.52,0.26]
[1642331415066,1.90458898,148.59,148.52,0.26]
[1642331416263,1.90458898,148.6,148.52,0.26]
[1642331418066,1.90458898,148.6,148.51,91.8031]
[1642331418265,3.60536486,148.6,148.51,24.1631]
[1642331419966,6.06858846,148.57,148.51,24.1631]
[1642331420172,6.06858846,148.57,148.45,1.75057459]
[1642331420368,23.4672,148.56,148.45,1.75057459]
[1642331420768,1.70077588,148.55,148.45,1.75057459]
[1642331421267,9.78277588,148.55,148.45,49.36038669]
[1642331421467,19.88427588,148.55,148.45,49.36038669]
[1642331421670,1.70077588,148.54,148.45,49.36038669]
[1642331422068,1.70077588,148.54,148.43,1.75057459]
[1642331422268,24.65747588,148.54,148.43,1.75057459]
[1642331422470,10.1025,148.53,148.43,1.75057459]
[1642331422670,1.90458898,148.52,148.39,25.90617459]
[1642331422870,26.40528898,148.52,148.4,0.25]
[1642331423069,15.51509472,148.51,148.4,35.60266771]
[1642331423270,15.51509472,148.51,148.39,1.75057459]
[1642331423468,1.96077588,148.5,148.39,1.75057459]
[1642331423870,1.70077588,148.49,148.39,1.75057459]
[1642331424069,7.28677588,148.49,148.37,1.75057459]
[1642331424268,7.28677588,148.49,148.37,40.79176311]
[1642331424471,10.1068,148.47,148.37,40.79176311]
[1642331424670,5.71870521,148.46,148.37,40.79176311]
[1642331424868,7.41948109,148.46,148.37,40.79176311]
[1642331425069,5.71870521,148.46,148.37,40.79176311]
[1642331425267,5.71870521,148.46,148.37,41.04176311]
[1642331425668,5.71870521,148.46,148.37,106.43118852]
[1642331426469,1.90458898,148.47,148.37,106.43118852]
[1642331426772,35.90758898,148.49,148.37,106.43118852]
[1642331427173,37.60836486,148.49,148.37,106.43118852]
[1642331427372,19.24801589,148.48,148.37,106.68118852]
[1642331427973,0.26,148.47,148.37,106.68118852]
[1642331428573,0.26,148.47,148.37,106.43118852]
[1642331429373,1.96077588,148.47,148.37,39.04118852]
[1642331430175,1.96077588,148.47,148.32,1.75057459]
[1642331430378,10.108,148.45,148.32,2.00057459]
[1642331430581,10.108,148.45,148.32,0.25]
[1642331430779,11.80877588,148.45,148.32,0.25]
[1642331430978,1.70077588,148.45,148.32,0.51]
[1642331431177,1.70077588,148.45,148.33,47.31280368]
[1642331431379,1.70077588,148.45,148.33,114.95280368]
[1642331431979,24.5487,148.46,148.33,114.95280368]
[1642331432779,24.5487,148.46,148.34,0.26]
[1642331433781,26.24947588,148.46,148.34,0.26]
[1642331434382,0.26,148.45,148.34,0.26]
[1642331434991,1.70077588,148.44,148.34,0.26]
[1642331435183,0.26,148.45,148.34,0.26]
[1642331435184,1.98578404,148.43,148.34,0.26]
[1642331436690,1.98578404,148.43,148.33,114.70280368]
[1642331436888,1.98578404,148.43,148.33,114.95280368]
[1642331437088,1.98578404,148.43,148.33,114.70280368]
[1642331437289,1.70077588,148.42,148.33,114.70280368]
[1642331437713,1.98578404,148.43,148.33,114.70280368]
[1642331438116,0.26,148.42,148.33,114.70280368]
[1642331439214,1.96077588,148.42,148.31,23.0972]
[1642331439414,10.64577588,148.42,148.31,23.3472]
[1642331440215,10.64577588,148.42,148.32,47.82453582]
[1642331440415,12.07097588,148.42,148.32,48.07453582]
[1642331441219,12.07097588,148.42,148.32,47.82453582]
[1642331441618,12.07097588,148.42,148.27,1.75057459]
[1642331441819,65.03597588,148.42,148.27,1.75057459]
[1642331442418,65.03597588,148.42,148.26,1e-08]
[1642331442619,65.03597588,148.42,148.26,48.39093644]
[1642331442819,65.03597588,148.42,148.26,1e-08]
[1642331443018,85.52614664,148.42,148.24,1.75057459]
[1642331443221,67.39,148.41,148.24,1.75057459]
[1642331443421,10.118,148.36,148.24,1.75057459]
[1642331443619,16.174,148.36,148.22,1.75057459]
[1642331443920,18.72180798,148.34,148.23,35.7129605]
[1642331444321,1.70077588,148.33,148.23,35.7129605]
[1642331444522,9.84977588,148.33,148.23,35.7129605]
[1642331444922,1.70077588,148.32,148.23,35.7129605]
[1642331445523,11.82017588,148.32,148.23,35.7129605]
[1642331446123,1.70077588,148.31,148.23,35.7129605]
[1642331446324,10.1194,148.32,148.23,35.7129605]
[1642331446524,10.1175,148.31,148.23,35.7129605]
[1642331446725,11.81827588,148.31,148.23,35.7129605]
[1642331447328,0.26,148.3,148.23,35.7129605]
[1642331447929,0.26,148.3,148.23,35.2129605]
[1642331449729,12.07917588,148.3,148.19,1.75057459]
[1642331450730,12.07917588,148.3,148.2,37.41855023]
[1642331452330,13.5029267,148.3,148.2,37.41855023]
[1642331452929,12.07917588,148.3,148.2,37.41855023]
[1642331454229,11.81917588,148.3,148.2,37.41855023]
[1642331454433,11.81787588,148.32,148.2,37.66855023]
[1642331454730,11.81787588,148.32,148.2,37.41855023]
[1642331454930,11.81787588,148.32,148.2,37.66855023]
[1642331455333,15.72882326,148.31,148.2,37.41855023]
[1642331455732,11.81777588,148.32,148.2,37.66855023]
[1642331455931,1.70077588,148.32,148.2,37.66855023]
[1642331456131,1.70077588,148.32,148.2,105.05855023]
[1642331456932,15.3035712,148.33,148.2,105.05855023]
[1642331457132,1.70077588,148.32,148.2,105.05855023]
[1642331457332,1.70077588,148.32,148.21,0.26]
[1642331457938,0.26,148.31,148.21,0.26]
[1642331458534,10.1155,148.34,148.22,0.07]
[1642331459734,0.26,148.33,148.22,0.07]
[1642331460233,1.96077588,148.33,148.22,0.07]
[1642331463445,1.70077588,148.33,148.22,0.07]
[1642331466087,1.70077588,148.33,148.25,36.37089205]
[1642331466484,1.70077588,148.33,148.25,36.62089205]
[1642331466988,1.70077588,148.33,148.25,36.37089205]
[1642331467185,0.26,148.32,148.25,36.37089205]
[1642331467989,1.96077588,148.32,148.25,36.37089205]
[1642331468189,1.96077588,148.32,148.23,1.75057459]
[1642331468190,4.96862742,148.31,148.23,1.75057459]
[1642331468589,1.70077588,148.3,148.23,1.75057459]
[1642331468789,1.70077588,148.3,148.22,1.75057459]
[1642331469188,1.70077588,148.3,148.23,40.19122731]
[1642331471394,4.96862742,148.31,148.23,40.19122731]
[1642331471592,15.08622742,148.31,148.23,40.19122731]
[1642331471793,0.26,148.3,148.23,40.44122731]
[1642331471991,0.26,148.3,148.23,40.19122731]
[1642331473701,12.07907588,148.3,148.23,40.19122731]
[1642331473894,16.45453023,148.29,148.23,40.19122731]
[1642331474697,1.96077588,148.29,148.23,40.19122731]
[1642331476998,1.96077588,148.29,148.21,1.75057459]
[1642331477199,1.05641983,148.28,148.21,1.75057459]
[1642331477398,18.10296764,148.28,148.22,1.75057459]
[1642331477599,130.07299393,148.27,148.18,3.51782204]
[1642331477799,140.5488553,148.27,148.18,3.51782204]
[1642331477999,31.93739255,148.26,148.14,4.75729553]
[1642331478500,10.1271,148.21,148.11,40.78318402]
[1642331478801,20.67797213,148.2,148.11,40.78318402]
[1642331479303,1.70077588,148.19,148.11,40.78318402]
[1642331480099,1.70077588,148.19,148.05,23.7291]
[1642331480301,10.127,148.18,148.05,23.7291]
[1642331480713,1.70077588,148.17,148.05,23.7291]
[1642331480902,1.70077588,148.17,148.03,29.28689553]
[1642331481104,3.01660368,148.16,148.04,49.3145369]
[1642331481502,1.70077588,148.15,148.04,49.3145369]
[1642331482101,11.82947588,148.15,148.04,49.3145369]
[1642331482505,1.70077588,148.14,148.04,49.3145369]
[1642331482702,18.97719625,148.13,148.04,49.3145369]
[1642331483107,1.70077588,148.12,148.04,49.3145369]
[1642331484605,10.131,148.11,148.04,49.3145369]
[1642331484903,1.70077588,148.12,148.04,49.0645369]
[1642331485103,44.76524329,148.15,148.04,48.8145369]
[1642331485906,24.75697588,148.15,148.04,49.0645369]
[1642331486311,0.26,148.14,148.04,49.0645369]
[1642331487413,0.26,148.14,148.05,0.26]
[1642331487814,0.26,148.17,148.05,0.33]
[1642331488215,0.26,148.17,148.05,0.07]
[1642331488416,12.08797588,148.17,148.05,0.07]
[1642331490036,18.65866232,148.17,148.05,0.07]
[1642331490836,29.13452369,148.17,148.05,0.07]
[1642331492745,63.7255553,148.17,148.05,0.07]
[1642331495844,131.1155553,148.17,148.05,0.07]
[1642331500253,139.2136153,148.17,148.05,0.07]
[1642331500651,1.16232919,148.13,148.05,0.07]
[1642331500851,10.137,148.12,148.05,0.07]
[1642331501051,39.6858553,148.12,148.05,0.07]
[1642331501251,37.44460749,148.11,148.05,0.07]
[1642331501554,29.34293306,148.1,147.94,47.4701275]
[1642331501752,24.9859,148.09,147.94,47.4701275]
[1642331501953,1.16232919,148.04,147.94,47.4701275]
[1642331502953,33.7947,148.06,147.94,47.4701275]
[1642331503151,33.7947,148.06,147.94,47.7201275]
[1642331503353,1.70077588,148.05,147.94,47.7201275]
[1642331504357,24.95297588,148.08,147.95,0.26]
[1642331505155,1.70077588,148.08,147.95,24.0136]
[1642331505357,17.41402084,148.08,147.95,24.2636]
[1642331505555,0.26,148.07,147.95,24.2636]
[1642331505855,27.54742084,148.08,147.95,24.2636]
[1642331507161,0.26,148.07,147.95,24.2636]
[1642331507560,0.26,148.07,147.95,91.3936]
[1642331507760,0.26,148.07,147.95,24.0036]
[1642331507959,12.09487588,148.07,147.97,43.49209863]
[1642331510190,12.16487588,148.07,147.97,43.49209863]
[1642331511793,12.16487588,148.07,147.95,23.7536]
[1642331511992,36.76157588,148.07,147.95,23.7536]
[1642331512798,36.76157588,148.07,147.96,45.49961078]
[1642331516300,36.76157588,148.07,147.95,23.7536]
[1642331517300,36.76157588,148.07,147.95,69.93481655]
[1642331519403,36.76157588,148.07,147.95,23.7536]
[1642331520205,7.05524146,148.06,147.95,23.7536]
[1642331520403,6.52055497,148.02,147.92,70.88680749]
[1642331520805,1.70077588,148.01,147.92,70.88680749]
[1642331521404,10.1395,147.99,147.92,70.88680749]
[1642331521605,15.71324496,147.98,147.93,3.8417194]
[1642331522410,10.1395,147.99,147.93,3.8417194]
[1642331522807,10.1383,148.01,147.93,3.8417194]
[1642331523206,22.6463,148.02,147.93,3.8417194]
[1642331523407,43.88065551,148.02,147.93,3.8417194]
[1642331524008,1.70077588,148.03,147.93,3.8417194]
[1642331524209,1.70077588,148.03,147.93,26.7591194]
[1642331524409,11.83757588,148.03,147.93,27.0091194]
[1642331525009,10.1368,148.03,147.93,27.0091194]
[1642331525213,39.01814422,148.05,147.95,48.92299454]
[1642331525812,22.5847,148.05,147.95,48.92299454]
[1642331526011,1.70077588,148.05,147.96,3.8417194]
[1642331526211,10.3702,148.13,147.96,3.8417194]
[1642331526517,24.80207588,148.12,147.97,22.7532]
[1642331526716,35.27793725,148.12,147.97,22.7532]
[1642331526916,35.27793725,148.12,147.98,37.20435707]
[1642331526917,20.33912468,148.1,147.98,37.20435707]
[1642331527117,1.89467525,148.06,147.98,37.20435707]
[1642331527318,1.89467525,148.06,147.97,22.7532]
[1642331527514,1.70077588,148.05,147.97,22.7532]
[1642331527722,1.96077588,148.05,147.97,22.7532]
[1642331527915,1.96077588,148.05,147.92,24.2463]
[1642331528114,1.96077588,148.05,147.93,24.6923]
[1642331528321,17.55520285,148.03,147.93,24.6923]
[1642331528717,1.70077588,148.02,147.9,4.75729553]
[1642331528917,1.70077588,148.02,147.89,0.16904968]
[1642331529117,10.1412,147.98,147.89,0.16904968]
[1642331529520,6.37937296,147.97,147.89,0.16904968]
[1642331529719,13.66237296,147.97,147.89,0.16904968]
[1642331529919,1.70077588,147.96,147.89,0.16904968]
[1642331530322,4.67859708,147.97,147.89,0.16904968]